Workbook

Sheet Assumptions
A1: Model by Carl Seidman
A2: SeidmanFinancial.com
A3: carl@seidmanfinancial.com
B5: Company Name | C5: ABC Company
C8: Months | D8: Years
B9: Start | C9: Jan | D9: 2021
C11: Tax Rate | D11: 0.35

Sheet Forecast (Table Refs)
A1: Model by Carl Seidman | F1: 1 | G1: =F1+1 -> 2 | H1: =G1+1 -> 3 | I1: 4 | J1: 5 | K1: 6 | L1: 7 | M1: 8 | N1: 9 | O1: 10 | P1: 11 | Q1: =P1+1 -> 12 | S1: =MAX(F1:OFFSET($S1,,-1))&"-" -> 12- | U1: 2021-01-31
A2: carl@seidmanfinancial.com | F2: =TRANSPOSE(CalendarActive) -> Jan | G2: Feb | H2: Mar | I2: Apr | J2: May | K2: Jun | L2: Jul | M2: Aug | N2: Sep | O2: Oct | P2: Nov | Q2: Dec | S2: Month | U2: 2021-12-31
C3: GL | D3: GL | F3: 2021 | G3: =IF(F2="Dec",F3+1,F3) -> 2021 | H3: 2021 | I3: 2021 | J3: 2021 | K3: 2021 | L3: 2021 | M3: 2021 | N3: 2021 | O3: 2021 | P3: 2021 | Q3: 2021 | S3: 2021
C4: Start Range | D4: End Range | F4: =EOMONTH(DATE(F3,INDEX(CalendarArray,VLOOKUP(F2,CalendarArray,2,FALSE),2),1),0) -> 2021-01-31 | G4: 2021-02-28 | H4: 2021-03-31 | I4: 2021-04-30 | J4: 2021-05-31 | K4: 2021-06-30 | L4: 2021-07-31 | M4: 2021-08-31 | N4: 2021-09-30 | O4: 2021-10-31 | P4: 2021-11-30 | Q4: 2021-12-31 | S4: Total
B6: Revenues | C6: =INDEX('GL Mapping'!$B:$E,MATCH('Forecast (Table Refs)'!$B6,'GL Mapping'!$B:$B,0),3) -> 4010 | D6: =INDEX('GL Mapping'!$B:$E,MATCH('Forecast (Table Refs)'!$B6,'GL Mapping'!$B:$B,0),4) -> 4030 | F6: =SUMIFS(INDIRECT(F$27&F$29),INDIRECT(F$27&F$28),">="&$C6,INDIRECT(F$27&F$28),"<="&$D6) -> 43069 | G6: 0 | H6: 0 | I6: 0 | J6: 0 | K6: 0 | L6: 0 | M6: 0 | N6: 0 | O6: 0 | P6: 0 | Q6: 0 | S6: =SUM(INDEX($F6:$Q6,1,MATCH($U$1,$F$4:$Q$4,0)):INDEX($F6:$Q6,1,MATCH($U$2,$F$4:$Q$4,0))) -> 43069
B7: COGS | C7: =INDEX('GL Mapping'!$B:$E,MATCH('Forecast (Table Refs)'!$B7,'GL Mapping'!$B:$B,0),3) -> 5010 | D7: =INDEX('GL Mapping'!$B:$E,MATCH('Forecast (Table Refs)'!$B7,'GL Mapping'!$B:$B,0),4) -> 5030 | F7: -29286.92 | G7: 0 | H7: 0 | I7: 0 | J7: 0 | K7: 0 | L7: 0 | M7: 0 | N7: 0 | O7: 0 | P7: 0 | Q7: 0 | S7: =SUM(INDEX($F7:$Q7,1,MATCH($U$1,$F$4:$Q$4,0)):INDEX($F7:$Q7,1,MATCH($U$2,$F$4:$Q$4,0))) -> -29286.92
B9: Gross Profit | F9: =F6+F7 -> 13782.08 | G9: 0 | H9: =H6+H7 -> 0 | I9: 0 | J9: 0 | K9: 0 | L9: 0 | M9: 0 | N9: 0 | O9: 0 | P9: 0 | Q9: 0 | S9: =S6+S7 -> 13782.08
B10: Salaries and Benefits | C10: =INDEX('GL Mapping'!$B:$E,MATCH('Forecast (Table Refs)'!$B10,'GL Mapping'!$B:$B,0),3) -> 6100 | D10: =INDEX('GL Mapping'!$B:$E,MATCH('Forecast (Table Refs)'!$B10,'GL Mapping'!$B:$B,0),4) -> 6120 | F10: =SUMIFS(INDIRECT(F$27&F$29),INDIRECT(F$27&F$28),">="&$C10,INDIRECT(F$27&F$28),"<="&$D10) -> -4785 | G10: 0 | H10: 0 | I10: 0 | J10: 0 | K10: 0 | L10: 0 | M10: 0 | N10: 0 | O10: 0 | P10: 0 | Q10: 0 | S10: =SUM(INDEX($F10:$Q10,1,MATCH($U$1,$F$4:$Q$4,0)):INDEX($F10:$Q10,1,MATCH($U$2,$F$4:$Q$4,0))) -> -4785
B11: Marketing Expenses | C11: =INDEX('GL Mapping'!$B:$E,MATCH('Forecast (Table Refs)'!$B11,'GL Mapping'!$B:$B,0),3) -> 6200 | D11: =INDEX('GL Mapping'!$B:$E,MATCH('Forecast (Table Refs)'!$B11,'GL Mapping'!$B:$B,0),4) -> 6220 | F11: -2619 | G11: 0 | H11: 0 | I11: 0 | J11: 0 | K11: 0 | L11: 0 | M11: 0 | N11: 0 | O11: 0 | P11: 0 | Q11: 0 | S11: =SUM(INDEX($F11:$Q11,1,MATCH($U$1,$F$4:$Q$4,0)):INDEX($F11:$Q11,1,MATCH($U$2,$F$4:$Q$4,0))) -> -2619
B12: General & Administration | C12: =INDEX('GL Mapping'!$B:$E,MATCH('Forecast (Table Refs)'!$B12,'GL Mapping'!$B:$B,0),3) -> 6300 | D12: =INDEX('GL Mapping'!$B:$E,MATCH('Forecast (Table Refs)'!$B12,'GL Mapping'!$B:$B,0),4) -> 6320 | F12: -1193 | G12: 0 | H12: 0 | I12: 0 | J12: 0 | K12: 0 | L12: 0 | M12: 0 | N12: 0 | O12: 0 | P12: 0 | Q12: 0 | S12: =SUM(INDEX($F12:$Q12,1,MATCH($U$1,$F$4:$Q$4,0)):INDEX($F12:$Q12,1,MATCH($U$2,$F$4:$Q$4,0))) -> -1193
B14: EBITDA | F14: =F9+SUM(F10:F13) -> 5185.08 | G14: =G9+SUM(G10:G13) -> 0 | H14: =H9+SUM(H10:H13) -> 0 | I14: 0 | J14: 0 | K14: 0 | L14: 0 | M14: 0 | N14: 0 | O14: 0 | P14: 0 | Q14: 0 | S14: =S9+SUM(S10:S13) -> 5185.08
B15: Depreciation | C15: =INDEX('GL Mapping'!$B:$E,MATCH('Forecast (Table Refs)'!$B15,'GL Mapping'!$B:$B,0),3) -> 6400 | D15: =INDEX('GL Mapping'!$B:$E,MATCH('Forecast (Table Refs)'!$B15,'GL Mapping'!$B:$B,0),4) -> 6400 | F15: =SUMIFS(INDIRECT(F$27&F$29),INDIRECT(F$27&F$28),">="&$C15,INDIRECT(F$27&F$28),"<="&$D15) -> -800 | G15: 0 | H15: 0 | I15: 0 | J15: 0 | K15: 0 | L15: 0 | M15: 0 | N15: 0 | O15: 0 | P15: 0 | Q15: 0 | S15: =SUM(INDEX($F15:$Q15,1,MATCH($U$1,$F$4:$Q$4,0)):INDEX($F15:$Q15,1,MATCH($U$2,$F$4:$Q$4,0))) -> -800
B16: Amortization | C16: 0 | D16: 0 | F16: 0 | G16: 0 | H16: 0 | I16: 0 | J16: 0 | K16: 0 | L16: 0 | M16: 0 | N16: 0 | O16: 0 | P16: 0 | Q16: 0 | S16: =SUM(INDEX($F16:$Q16,1,MATCH($U$1,$F$4:$Q$4,0)):INDEX($F16:$Q16,1,MATCH($U$2,$F$4:$Q$4,0))) -> 0
B18: EBIT | F18: =SUM(F14:F17) -> 4385.08 | G18: =SUM(G14:G17) -> 0 | H18: 0 | I18: =SUM(I14:I17) -> 0 | J18: 0 | K18: =SUM(K14:K17) -> 0 | L18: 0 | M18: 0 | N18: 0 | O18: 0 | P18: 0 | Q18: 0 | S18: =SUM(S14:S17) -> 4385.08
B19: Non-Operating Inc/(Exp) | C19: =INDEX('GL Mapping'!$B:$E,MATCH('Forecast (Table Refs)'!$B19,'GL Mapping'!$B:$B,0),3) -> 7000 | D19: =INDEX('GL Mapping'!$B:$E,MATCH('Forecast (Table Refs)'!$B19,'GL Mapping'!$B:$B,0),4) -> 7000 | F19: =SUMIFS(INDIRECT(F$27&F$29),INDIRECT(F$27&F$28),">="&$C19,INDIRECT(F$27&F$28),"<="&$D19) -> 50 | G19: 0 | H19: 0 | I19: 0 | J19: 0 | K19: 0 | L19: 0 | M19: 0 | N19: 0 | O19: 0 | P19: 0 | Q19: 0 | S19: =SUM(INDEX($F19:$Q19,1,MATCH($U$1,$F$4:$Q$4,0)):INDEX($F19:$Q19,1,MATCH($U$2,$F$4:$Q$4,0))) -> 50
B21: Pre-Tax Income | F21: =SUM(F18:F20) -> 4435.08 | G21: =SUM(G18:G20) -> 0 | H21: 0 | I21: =SUM(I18:I20) -> 0 | J21: 0 | K21: =SUM(K18:K20) -> 0 | L21: 0 | M21: 0 | N21: 0 | O21: 0 | P21: 0 | Q21: 0 | S21: =SUM(S18:S20) -> 4435.08
B22: Taxes | C22: 0 | D22: 0 | F22: =-(Assumptions!$D11*F21) -> -1552.278 | G22: =-(Assumptions!$D11*G21) -> 0 | H22: =-(Assumptions!$D11*H21) -> 0 | I22: =-(Assumptions!$D11*I21) -> 0 | J22: =-(Assumptions!$D11*J21) -> 0 | K22: =-(Assumptions!$D11*K21) -> 0 | L22: =-(Assumptions!$D11*L21) -> 0 | M22: =-(Assumptions!$D11*M21) -> 0 | N22: =-(Assumptions!$D11*N21) -> 0 | O22: =-(Assumptions!$D11*O21) -> 0 | P22: =-(Assumptions!$D11*P21) -> 0 | Q22: =-(Assumptions!$D11*Q21) -> 0 | S22: =-(Assumptions!$D11*S21) -> -1552.278
B24: Net Income | F24: =SUM(F21:F23) -> 2882.802 | G24: =SUM(G21:G23) -> 0 | H24: =SUM(H21:H23) -> 0 | I24: 0 | J24: 0 | K24: 0 | L24: 0 | M24: 0 | N24: 0 | O24: 0 | P24: 0 | Q24: 0 | S24: =SUM(S21:S23) -> 2882.802
F25: =IFERROR(F24/F6,"") -> 0.06693450045 | G25: =IFERROR(G24/G6,"") ->  | J25: =IFERROR(J24/J6,"") ->  | Q25: =IFERROR(Q24/Q6,"") ->  | S25: =S24/S6 -> 0.06693450045
B27: Table Reference | F27: =F2&"_"&F3&"_GL" -> Jan_2021_GL | G27: =G2&"_"&G3&"_GL" -> Feb_2021_GL | H27: =H2&"_"&H3&"_GL" -> Mar_2021_GL | I27: =I2&"_"&I3&"_GL" -> Apr_2021_GL | J27: =J2&"_"&J3&"_GL" -> May_2021_GL
B28: Lookup Criteria | F28: [GL Acct] | G28: [GL Acct] | H28: [GL Acct] | I28: [GL Acct] | J28: [GL Acct]
B29: Lookup Total | F29: [Total] | G29: [Total] | H29: [Total] | I29: [Total] | J29: [Total]

Sheet Forecast (Range Refs)
A1: Model by Carl Seidman | F1: 1 | G1: =F1+1 -> 2 | H1: =G1+1 -> 3 | I1: 4 | J1: 5 | K1: 6 | L1: 7 | M1: 8 | N1: 9 | O1: 10 | P1: 11 | Q1: =P1+1 -> 12 | S1: =MAX(F1:OFFSET($S1,,-1))&"-" -> 12- | U1: 2021-01-31
A2: carl@seidmanfinancial.com | F2: =TRANSPOSE(CalendarActive) -> Jan | G2: Feb | H2: Mar | I2: Apr | J2: May | K2: Jun | L2: Jul | M2: Aug | N2: Sep | O2: Oct | P2: Nov | Q2: Dec | S2: Month | U2: 2021-12-31
C3: GL | D3: GL | F3: 2021 | G3: =IF(F2="Dec",F3+1,F3) -> 2021 | H3: 2021 | I3: 2021 | J3: 2021 | K3: 2021 | L3: 2021 | M3: 2021 | N3: 2021 | O3: 2021 | P3: 2021 | Q3: 2021 | S3: 2021
C4: Start Range | D4: End Range | F4: =EOMONTH(DATE(F3,INDEX(CalendarArray,VLOOKUP(F2,CalendarArray,2,FALSE),2),1),0) -> 2021-01-31 | G4: 2021-02-28 | H4: 2021-03-31 | I4: 2021-04-30 | J4: 2021-05-31 | K4: 2021-06-30 | L4: 2021-07-31 | M4: 2021-08-31 | N4: 2021-09-30 | O4: 2021-10-31 | P4: 2021-11-30 | Q4: 2021-12-31 | S4: Total
B6: Revenues | C6: =INDEX('GL Mapping'!$B:$E,MATCH('Forecast (Range Refs)'!$B6,'GL Mapping'!$B:$B,0),3) -> 4010 | D6: =INDEX('GL Mapping'!$B:$E,MATCH('Forecast (Range Refs)'!$B6,'GL Mapping'!$B:$B,0),4) -> 4030 | F6: =SUMIFS(INDIRECT(F$30),INDIRECT(F$32),">="&$C6,INDIRECT(F$32),"<="&$D6) -> 43069 | G6: 0 | H6: 0 | I6: 0 | J6: 0 | K6: 0 | L6: 0 | M6: 0 | N6: 0 | O6: 0 | P6: 0 | Q6: 0 | S6: =SUM(INDEX($F6:$Q6,1,MATCH($U$1,$F$4:$Q$4,0)):INDEX($F6:$Q6,1,MATCH($U$2,$F$4:$Q$4,0))) -> 43069
B7: COGS | C7: =INDEX('GL Mapping'!$B:$E,MATCH('Forecast (Range Refs)'!$B7,'GL Mapping'!$B:$B,0),3) -> 5010 | D7: =INDEX('GL Mapping'!$B:$E,MATCH('Forecast (Range Refs)'!$B7,'GL Mapping'!$B:$B,0),4) -> 5030 | F7: =SUMIFS(INDIRECT(F$30),INDIRECT(F$32),">="&$C7,INDIRECT(F$32),"<="&$D7) -> -29286.92 | G7: 0 | H7: 0 | I7: 0 | J7: 0 | K7: 0 | L7: 0 | M7: 0 | N7: 0 | O7: 0 | P7: 0 | Q7: 0 | S7: =SUM(INDEX($F7:$Q7,1,MATCH($U$1,$F$4:$Q$4,0)):INDEX($F7:$Q7,1,MATCH($U$2,$F$4:$Q$4,0))) -> -29286.92
B9: Gross Profit | F9: =F6+F7 -> 13782.08 | G9: 0 | H9: =H6+H7 -> 0 | I9: =I6+I7 -> 0 | J9: =J6+J7 -> 0 | K9: =K6+K7 -> 0 | L9: 0 | M9: 0 | N9: 0 | O9: 0 | P9: 0 | Q9: 0 | S9: =S6+S7 -> 13782.08
B10: Salaries and Benefits | C10: =INDEX('GL Mapping'!$B:$E,MATCH('Forecast (Range Refs)'!$B10,'GL Mapping'!$B:$B,0),3) -> 6100 | D10: =INDEX('GL Mapping'!$B:$E,MATCH('Forecast (Range Refs)'!$B10,'GL Mapping'!$B:$B,0),4) -> 6120 | F10: =SUMIFS(INDIRECT(F$30),INDIRECT(F$32),">="&$C10,INDIRECT(F$32),"<="&$D10) -> -4785 | G10: 0 | H10: 0 | I10: 0 | J10: 0 | K10: 0 | L10: 0 | M10: 0 | N10: 0 | O10: 0 | P10: 0 | Q10: 0 | S10: =SUM(INDEX($F10:$Q10,1,MATCH($U$1,$F$4:$Q$4,0)):INDEX($F10:$Q10,1,MATCH($U$2,$F$4:$Q$4,0))) -> -4785
B11: Marketing Expenses | C11: =INDEX('GL Mapping'!$B:$E,MATCH('Forecast (Range Refs)'!$B11,'GL Mapping'!$B:$B,0),3) -> 6200 | D11: =INDEX('GL Mapping'!$B:$E,MATCH('Forecast (Range Refs)'!$B11,'GL Mapping'!$B:$B,0),4) -> 6220 | F11: =SUMIFS(INDIRECT(F$30),INDIRECT(F$32),">="&$C11,INDIRECT(F$32),"<="&$D11) -> -2619 | G11: 0 | H11: 0 | I11: 0 | J11: 0 | K11: 0 | L11: 0 | M11: 0 | N11: 0 | O11: 0 | P11: 0 | Q11: 0 | S11: =SUM(INDEX($F11:$Q11,1,MATCH($U$1,$F$4:$Q$4,0)):INDEX($F11:$Q11,1,MATCH($U$2,$F$4:$Q$4,0))) -> -2619
B12: General & Administration | C12: =INDEX('GL Mapping'!$B:$E,MATCH('Forecast (Range Refs)'!$B12,'GL Mapping'!$B:$B,0),3) -> 6300 | D12: =INDEX('GL Mapping'!$B:$E,MATCH('Forecast (Range Refs)'!$B12,'GL Mapping'!$B:$B,0),4) -> 6320 | F12: =SUMIFS(INDIRECT(F$30),INDIRECT(F$32),">="&$C12,INDIRECT(F$32),"<="&$D12) -> -1193 | G12: 0 | H12: 0 | I12: 0 | J12: 0 | K12: 0 | L12: 0 | M12: 0 | N12: 0 | O12: 0 | P12: 0 | Q12: 0 | S12: =SUM(INDEX($F12:$Q12,1,MATCH($U$1,$F$4:$Q$4,0)):INDEX($F12:$Q12,1,MATCH($U$2,$F$4:$Q$4,0))) -> -1193
B14: EBITDA | F14: =F9+SUM(F10:F13) -> 5185.08 | G14: 0 | H14: =H9+SUM(H10:H13) -> 0 | I14: =I9+SUM(I10:I13) -> 0 | J14: =J9+SUM(J10:J13) -> 0 | K14: =K9+SUM(K10:K13) -> 0 | L14: 0 | M14: 0 | N14: 0 | O14: 0 | P14: 0 | Q14: 0 | S14: =S9+SUM(S10:S13) -> 5185.08
B15: Depreciation | C15: =INDEX('GL Mapping'!$B:$E,MATCH('Forecast (Range Refs)'!$B15,'GL Mapping'!$B:$B,0),3) -> 6400 | D15: =INDEX('GL Mapping'!$B:$E,MATCH('Forecast (Range Refs)'!$B15,'GL Mapping'!$B:$B,0),4) -> 6400 | F15: =SUMIFS(INDIRECT(F$30),INDIRECT(F$32),">="&$C15,INDIRECT(F$32),"<="&$D15) -> -800 | G15: 0 | H15: 0 | I15: 0 | J15: 0 | K15: 0 | L15: 0 | M15: 0 | N15: 0 | O15: 0 | P15: 0 | Q15: 0 | S15: =SUM(INDEX($F15:$Q15,1,MATCH($U$1,$F$4:$Q$4,0)):INDEX($F15:$Q15,1,MATCH($U$2,$F$4:$Q$4,0))) -> -800
B16: Amortization | C16: 0 | D16: 0 | F16: =SUMIFS(INDIRECT(F$30),INDIRECT(F$32),">="&$C16,INDIRECT(F$32),"<="&$D16) -> 0 | G16: 0 | H16: 0 | I16: 0 | J16: 0 | K16: 0 | L16: 0 | M16: 0 | N16: 0 | O16: 0 | P16: 0 | Q16: 0 | S16: =SUM(INDEX($F16:$Q16,1,MATCH($U$1,$F$4:$Q$4,0)):INDEX($F16:$Q16,1,MATCH($U$2,$F$4:$Q$4,0))) -> 0
B18: EBIT | F18: =SUM(F14:F17) -> 4385.08 | G18: 0 | H18: =SUM(H14:H17) -> 0 | I18: =SUM(I14:I17) -> 0 | J18: =SUM(J14:J17) -> 0 | K18: =SUM(K14:K17) -> 0 | L18: 0 | M18: 0 | N18: 0 | O18: 0 | P18: 0 | Q18: 0 | S18: =SUM(S14:S17) -> 4385.08
B19: Non-Operating Inc/(Exp) | C19: =INDEX('GL Mapping'!$B:$E,MATCH('Forecast (Range Refs)'!$B19,'GL Mapping'!$B:$B,0),3) -> 7000 | D19: =INDEX('GL Mapping'!$B:$E,MATCH('Forecast (Range Refs)'!$B19,'GL Mapping'!$B:$B,0),4) -> 7000 | F19: =SUMIFS(INDIRECT(F$30),INDIRECT(F$32),">="&$C19,INDIRECT(F$32),"<="&$D19) -> 50 | G19: 0 | H19: 0 | I19: 0 | J19: 0 | K19: 0 | L19: 0 | M19: 0 | N19: 0 | O19: 0 | P19: 0 | Q19: 0 | S19: =SUM(INDEX($F19:$Q19,1,MATCH($U$1,$F$4:$Q$4,0)):INDEX($F19:$Q19,1,MATCH($U$2,$F$4:$Q$4,0))) -> 50
B21: Pre-Tax Income | F21: =SUM(F18:F20) -> 4435.08 | G21: 0 | H21: =SUM(H18:H20) -> 0 | I21: =SUM(I18:I20) -> 0 | J21: =SUM(J18:J20) -> 0 | K21: =SUM(K18:K20) -> 0 | L21: 0 | M21: 0 | N21: 0 | O21: 0 | P21: 0 | Q21: 0 | S21: =SUM(S18:S20) -> 4435.08
B22: Taxes | C22: 0 | D22: 0 | F22: =-(Assumptions!$D11*F21) -> -1552.278 | G22: =-(Assumptions!$D11*G21) -> 0 | H22: =-(Assumptions!$D11*H21) -> 0 | I22: =-(Assumptions!$D11*I21) -> 0 | J22: =-(Assumptions!$D11*J21) -> 0 | K22: =-(Assumptions!$D11*K21) -> 0 | L22: =-(Assumptions!$D11*L21) -> 0 | M22: =-(Assumptions!$D11*M21) -> 0 | N22: =-(Assumptions!$D11*N21) -> 0 | O22: =-(Assumptions!$D11*O21) -> 0 | P22: =-(Assumptions!$D11*P21) -> 0 | Q22: =-(Assumptions!$D11*Q21) -> 0 | S22: =-(Assumptions!$D11*S21) -> -1552.278
B24: Net Income | F24: =SUM(F21:F23) -> 2882.802 | G24: 0 | H24: =SUM(H21:H23) -> 0 | I24: =SUM(I21:I23) -> 0 | J24: =SUM(J21:J23) -> 0 | K24: =SUM(K21:K23) -> 0 | L24: 0 | M24: 0 | N24: 0 | O24: 0 | P24: 0 | Q24: 0 | S24: =SUM(S21:S23) -> 2882.802
F25: =IFERROR(F24/F6,"") -> 0.06693450045 | H25: =IFERROR(H24/H6,"") ->  | I25: =IFERROR(I24/I6,"") ->  | J25: =IFERROR(J24/J6,"") ->  | K25: =IFERROR(K24/K6,"") ->  | Q25: =IFERROR(Q24/Q6,"") ->  | S25: =S24/S6 -> 0.06693450045
B27: Table Reference | F27: =F2&" "&F3 -> Jan 2021
B28: Worksheet Reference | F28: ="'"&F27&"'!" -> 'Jan 2021'!
B29: Total | F29: =_xlfn.XMATCH($B29,INDIRECT(F28&"$1:$1"),,) -> 5
B30: Total Column Location | F30: =F28&_xlfn.XLOOKUP(F29,'Table Mapping'!$1:$1,'Table Mapping'!$2:$2)&":"&_xlfn.XLOOKUP(F29,'Table Mapping'!$1:$1,'Table Mapping'!$2:$2) -> 'Jan 2021'!E:E
B31: GL Acct | F31: =_xlfn.XMATCH($B31,INDIRECT(F28&"$1:$1"),,) -> 4
B32: GL Acct Column Location | F32: =F28&_xlfn.XLOOKUP(F31,'Table Mapping'!$1:$1,'Table Mapping'!$2:$2)&":"&_xlfn.XLOOKUP(F31,'Table Mapping'!$1:$1,'Table Mapping'!$2:$2) -> 'Jan 2021'!D:D

Sheet Jan 2021
B1: Account Detail | C1: Account | D1: GL Acct | E1: Total
B2: Sales Channel A | C2: Revenues | D2: 4010 | E2: 6875
B3: Sales Channel B | C3: Revenues | D3: 4020 | E3: 2609
B4: Sales Channel C | C4: Revenues | D4: 4030 | E4: 33585
B5: COGS Channel A | C5: COGS | D5: 5010 | E5: =-E2*0.68 -> -4675
B6: COGS Channel B | C6: COGS | D6: 5020 | E6: =-E3*0.68 -> -1774.12
B7: COGS Channel C | C7: COGS | D7: 5030 | E7: =-E4*0.68 -> -22837.8
B8: Salaries | C8: Salaries and Benefits | D8: 6100 | E8: -2980
B9: Benefits | C9: Salaries and Benefits | D9: 6110 | E9: -1005
B10: Bonuses | C10: Salaries and Benefits | D10: 6120 | E10: -800
B11: eCommerce | C11: Marketing Expenses | D11: 6200 | E11: -1029
B12: Web | C12: Marketing Expenses | D12: 6210 | E12: -940
B13: Advertising | C13: Marketing Expenses | D13: 6220 | E13: -650
B14: Travel | C14: General & Administration | D14: 6300 | E14: -398
B15: Insurance | C15: General & Administration | D15: 6310 | E15: -195
B16: Motor | C16: General & Administration | D16: 6320 | E16: -600
B17: Depreciation | C17: Depreciation | D17: 6400 | E17: -800
B18: Non-Operating Inc/(Exp) | C18: Non-Operating Inc/(Exp) | D18: 7000 | E18: 50

Sheet Feb 2021
B1: Account Detail | C1: Account | D1: GL Acct | E1: Total
B2: Sales Channel A | C2: Revenues | D2: 4010 | E2: 7356.25
B3: Sales Channel B | C3: Revenues | D3: 4020 | E3: 2817.72
B4: Sales Channel C | C4: Revenues | D4: 4030 | E4: 35591.8
B5: COGS Channel A | C5: COGS | D5: 5010 | E5: -4815.25
B6: COGS Channel B | C6: COGS | D6: 5020 | E6: -1862.826
B7: COGS Channel C | C7: COGS | D7: 5030 | E7: -28113.58
B8: Salaries | C8: Salaries and Benefits | D8: 6100 | E8: -3188.6
B9: Benefits | C9: Salaries and Benefits | D9: 6110 | E9: -1035.15
B10: Bonuses | C10: Salaries and Benefits | D10: 6120 | E10: -840
B11: eCommerce | C11: Marketing Expenses | D11: 6200 | E11: -1121.61
B12: Web | C12: Marketing Expenses | D12: 6210 | E12: -958.8
B13: Advertising | C13: Marketing Expenses | D13: 6220 | E13: -715
B14: Travel | C14: General & Administration | D14: 6300 | E14: -425.86
B15: Insurance | C15: General & Administration | D15: 6310 | E15: -195
B16: Motor | C16: General & Administration | D16: 6320 | E16: -624
B17: Depreciation | C17: Depreciation | D17: 6400 | E17: -800
B18: Non-Operating Inc/(Exp) | C18: Non-Operating Inc/(Exp) | D18: 7000 | E18: 54.5

Sheet Mar 2021
B1: Account Detail | C1: Account | D1: GL Acct | E1: Total
B2: Sales Channel A | C2: Revenues | D2: 4010 | E2: 5589.360832
B3: Sales Channel B | C3: Revenues | D3: 4020 | E3: 2121.111623
B4: Sales Channel C | C4: Revenues | D4: 4030 | E4: 27556.52754
B5: COGS Channel A | C5: COGS | D5: 5010 | E5: -2190.932461
B6: COGS Channel B | C6: COGS | D6: 5020 | E6: -831.4389513
B7: COGS Channel C | C7: COGS | D7: 5030 | E7: -11977.62859
B8: Salaries | C8: Salaries and Benefits | D8: 6100 | E8: -2615.673981
B9: Benefits | C9: Salaries and Benefits | D9: 6110 | E9: -882.1316614
B10: Bonuses | C10: Salaries and Benefits | D10: 6120 | E10: -702.1943574
B11: eCommerce | C11: Marketing Expenses | D11: 6200 | E11: -942.9553265
B12: Web | C12: Marketing Expenses | D12: 6210 | E12: -861.39748
B13: Advertising | C13: Marketing Expenses | D13: 6220 | E13: -595.6471936
B14: Travel | C14: General & Administration | D14: 6300 | E14: -467.0578374
B15: Insurance | C15: General & Administration | D15: 6310 | E15: -228.8348701
B16: Motor | C16: General & Administration | D16: 6320 | E16: -704.1072925
B17: Depreciation | C17: Depreciation | D17: 6400 | E17: -800
B18: Non-Operating Inc/(Exp) | C18: Non-Operating Inc/(Exp) | D18: 7000 | E18: 150

Sheet Apr 2021
B1: Account Detail | C1: Account | D1: GL Acct | E1: Total
B2: Sales Channel A | C2: Revenues | D2: 4010 | E2: 6370.977051
B3: Sales Channel A | C3: Revenues | D3: 4010 | E3: 2417.727873
B4: Sales Channel A | C4: Revenues | D4: 4010 | E4: 31410.03236
B5: COGS Channel B | C5: COGS | D5: 5020 | E5: -2497.312456
B6: COGS Channel B | C6: COGS | D6: 5020 | E6: -947.7073743
B7: COGS Channel B | C7: COGS | D7: 5020 | E7: -13652.58017
B8: Salaries | C8: Salaries and Benefits | D8: 6100 | E8: -2981.449831
B9: Benefits | C9: Salaries and Benefits | D9: 6110 | E9: -1005.488953
B10: Bonuses | C10: Salaries and Benefits | D10: 6120 | E10: -800.3892163
B11: eCommerce | C11: Marketing Expenses | D11: 6200 | E11: -1074.818199
B12: Web | C12: Marketing Expenses | D12: 6210 | E12: -981.8553036
B13: Advertising | C13: Marketing Expenses | D13: 6220 | E13: -678.9424971
B14: Travel | C14: General & Administration | D14: 6300 | E14: -532.3712054
B15: Insurance | C15: General & Administration | D15: 6310 | E15: -260.8351383
B16: Motor | C16: General & Administration | D16: 6320 | E16: -802.5696563
B17: Depreciation | C17: Depreciation | D17: 6400 | E17: -911.872
B18: Non-Operating Inc/(Exp) | C18: Non-Operating Inc/(Exp) | D18: 7000 | E18: 170.976

Sheet May 2021
B1: Account Detail | C1: Account | D1: GL Acct | E1: Total
B2: Sales Channel A | C2: Revenues | D2: 4010 | E2: 7157.218373
B3: Sales Channel A | C3: Revenues | D3: 4010 | E3: 2716.099307
B4: Sales Channel A | C4: Revenues | D4: 4010 | E4: 35286.33974
B5: COGS Channel B | C5: COGS | D5: 5020 | E5: -2805.505412
B6: COGS Channel B | C6: COGS | D6: 5020 | E6: -1064.663799
B7: COGS Channel B | C7: COGS | D7: 5020 | E7: -15337.44304
B8: Salaries | C8: Salaries and Benefits | D8: 6100 | E8: -3349.390107
B9: Benefits | C9: Salaries and Benefits | D9: 6110 | E9: -1129.576194
B10: Bonuses | C10: Salaries and Benefits | D10: 6120 | E10: -899.1651294
B11: eCommerce | C11: Marketing Expenses | D11: 6200 | E11: -1207.461352
B12: Web | C12: Marketing Expenses | D12: 6210 | E12: -1103.025919
B13: Advertising | C13: Marketing Expenses | D13: 6220 | E13: -762.7306889
B14: Travel | C14: General & Administration | D14: 6300 | E14: -598.071056
B15: Insurance | C15: General & Administration | D15: 6310 | E15: -293.0247636
B16: Motor | C16: General & Administration | D16: 6320 | E16: -901.6146572
B17: Depreciation | C17: Depreciation | D17: 6400 | E17: -1024.405987
B18: Non-Operating Inc/(Exp) | C18: Non-Operating Inc/(Exp) | D18: 7000 | E18: 192.0761225

Sheet GL Mapping
B1: Account | D1: GL Acct
B2: Revenues | D2: =MIN(D3:D5) -> 4010 | E2: =MAX(D3:D6) -> 4030
B3: Sales Channel A | D3: 4010
B4: Sales Channel B | D4: 4020
B5: Sales Channel C | D5: 4030
B7: COGS | D7: =MIN(D8:D10) -> 5010 | E7: =MAX(D8:D11) -> 5030
B8: COGS Channel A | D8: 5010
B9: COGS Channel B | D9: 5020
B10: COGS Channel C | D10: 5030
B12: Salaries and Benefits | D12: =MIN(D13:D15) -> 6100 | E12: =MAX(D13:D16) -> 6120
B13: Salaries | D13: 6100
B14: Benefits | D14: 6110
B15: Bonuses | D15: 6120
B17: Marketing Expenses | D17: =MIN(D18:D20) -> 6200 | E17: =MAX(D18:D21) -> 6220
B18: eCommerce | D18: 6200
B19: Web | D19: 6210
B20: Advertising | D20: 6220
B22: General & Administration | D22: =MIN(D23:D25) -> 6300 | E22: =MAX(D23:D26) -> 6320
B23: Travel | D23: 6300
B24: Insurance | D24: 6310
B25: Motor | D25: 6320
B27: Depreciation | D27: =MIN(D28:D28) -> 6400 | E27: =MAX(D28:D29) -> 6400
B28: Depreciation | D28: 6400
B30: Non-Operating Inc/(Exp) | D30: =MIN(D31:D31) -> 7000 | E30: =MAX(D31:D32) -> 7000
B31: Non-Operating Inc/(Exp) | D31: 7000

Sheet Table Mapping
A1: ={1,2,3,4,5,6,7;"A","B","C","D","E","F","G"} -> 1 | B1: 2 | C1: 3 | D1: 4 | E1: 5 | F1: 6 | G1: 7
A2: A | B2: B | C2: C | D2: D | E2: E | F2: F | G2: G

Sheet Calendar
C1: 1 | D1: =C1+1 -> 2 | E1: 3 | F1: 4 | G1: 5 | H1: 6 | I1: 7 | J1: 8 | K1: 9 | L1: 10 | M1: 11 | N1: 12 | O1: Active
B2: 1 | C2: Jan | D2: Feb | E2: Mar | F2: Apr | G2: May | H2: June | I2: Jul | J2: Aug | K2: Sep | L2: Oct | M2: Nov | N2: Dec | O2: =(OFFSET(INDEX(Calendar!$C$2:$N$13,1,MATCH(Assumptions!$C$9,$C$2:$N$2,0)),,,12)) -> Jan
B3: 2 | C3: Feb | D3: Mar | E3: Apr | F3: May | G3: Jun | H3: Jul | I3: Aug | J3: Sep | K3: Oct | L3: Nov | M3: Dec | N3: Jan | O3: Feb
B4: 3 | C4: Mar | D4: Apr | E4: May | F4: Jun | G4: Jul | H4: Aug | I4: Sep | J4: Oct | K4: Nov | L4: Dec | M4: Jan | N4: Feb | O4: Mar
B5: 4 | C5: Apr | D5: May | E5: Jun | F5: Jul | G5: Aug | H5: Sep | I5: Oct | J5: Nov | K5: Dec | L5: Jan | M5: Feb | N5: Mar | O5: Apr
B6: 5 | C6: May | D6: Jun | E6: Jul | F6: Aug | G6: Sep | H6: Oct | I6: Nov | J6: Dec | K6: Jan | L6: Feb | M6: Mar | N6: Apr | O6: May
B7: 6 | C7: Jun | D7: Jul | E7: Aug | F7: Sep | G7: Oct | H7: Nov | I7: Dec | J7: Jan | K7: Feb | L7: Mar | M7: Apr | N7: May | O7: Jun
B8: 7 | C8: Jul | D8: Aug | E8: Sep | F8: Oct | G8: Nov | H8: Dec | I8: Jan | J8: Feb | K8: Mar | L8: Apr | M8: May | N8: Jun | O8: Jul
B9: 8 | C9: Aug | D9: Sep | E9: Oct | F9: Nov | G9: Dec | H9: Jan | I9: Feb | J9: Mar | K9: Apr | L9: May | M9: Jun | N9: Jul | O9: Aug
B10: 9 | C10: Sep | D10: Oct | E10: Nov | F10: Dec | G10: Jan | H10: Feb | I10: Mar | J10: Apr | K10: May | L10: Jun | M10: Jul | N10: Aug | O10: Sep
B11: 10 | C11: Oct | D11: Nov | E11: Dec | F11: Jan | G11: Feb | H11: Mar | I11: Apr | J11: May | K11: Jun | L11: Jul | M11: Aug | N11: Sep | O11: Oct
B12: 11 | C12: Nov | D12: Dec | E12: Jan | F12: Feb | G12: Mar | H12: Apr | I12: May | J12: Jun | K12: Jul | L12: Aug | M12: Sep | N12: Oct | O12: Nov
B13: 12 | C13: Dec | D13: Jan | E13: Feb | F13: Mar | G13: Apr | H13: May | I13: Jun | J13: Jul | K13: Aug | L13: Sep | M13: Oct | N13: Nov | O13: Dec
